fUST/lending_fUST_20240811
["ID","MTS","AMOUNT","RATE_DAILY","PERIOD"]
[334613859,1723347044979,-500.0,0.00020821,3]
[334613860,1723347044989,-545.08891985,0.00020821,3]
[334613861,1723347044999,-500.0,0.00020821,3]
[334613862,1723347045009,-500.0,0.00020821,3]
[334613863,1723347045018,-1392.36,0.00020821,3]
[334613864,1723347045028,-250.00872794,0.00020821,3]
[334613865,1723347045038,-500.0,0.00020821,3]
[334613866,1723347045048,-500.0,0.00020821,3]
[334613867,1723347045058,-500.0,0.00020821,3]
[334613868,1723347045068,-774.1,0.00020821,3]
[334613869,1723347045078,-500.0,0.00020821,3]
[334613870,1723347045087,-500.0,0.00020821,3]
[334613871,1723347045097,-1187.55,0.00020821,3]
[334613872,1723347045108,-500.0,0.00020821,3]
[334613873,1723347045118,-500.0,0.00020821,3]
[334613874,1723347045127,-500.0,0.00020821,3]
[334613875,1723347045137,-500.0,0.00020821,3]
[334613876,1723347045147,-1226.52,0.00020821,3]
[334613877,1723347045156,-501.25767554,0.00020821,3]
[334613878,1723347045166,-500.0,0.00020821,3]
[334613879,1723347045176,-513.00921081,0.00020821,3]
[334613880,1723347045186,-510.56967766,0.00020821,3]
[334613881,1723347045195,-500.0,0.00020821,3]
[334613882,1723347045205,-760.94,0.00020821,3]
[334613883,1723347045215,-500.0,0.00020821,3]
[334613884,1723347045225,-500.0,0.00020821,3]
[334613885,1723347045235,-500.0,0.00020821,3]
[334613886,1723347045244,-500.0,0.00020821,3]
[334613887,1723347045254,-503.7474124,0.00020821,3]
[334613888,1723347045263,-500.0,0.00020821,3]
[334613889,1723347045273,-500.0,0.00020821,3]
[334613890,1723347045282,-500.0,0.00020821,3]
[334613891,1723347045293,-482.76035406,0.00020821,3]
[334613892,1723347045302,-276.9895369,0.00020821,3]
[334613893,1723347045312,-500.0,0.00020821,3]
[334613894,1723347045321,-434.84838924,0.00020821,3]
[334613895,1723347045331,-500.0,0.00020821,3]
[334613896,1723347045341,-500.0,0.00020821,3]
[334613897,1723347045352,-534.34,0.00020821,3]
[334613898,1723347045363,-523.76010816,0.00020821,3]
[334613899,1723347045373,-500.0,0.00020821,3]
[334613900,1723347045383,-508.73142886,0.00020821,3]
[334613901,1723347045393,-506.08118856,0.00020821,3]
[334613902,1723347045406,-500.0,0.00020821,3]
[334613903,1723347045418,-527.48,0.00020821,3]
[334613904,1723347045430,-500.0,0.00020821,3]
[334613905,1723347045440,-500.0,0.00020821,3]
[334613906,1723347045451,-500.0,0.00020821,3]
[334613907,1723347045461,-500.0,0.00020821,3]
[334613908,1723347045471,-500.0,0.00020821,3]
[334613909,1723347045481,-500.0,0.00020821,3]
[334613910,1723347045491,-169.5879124,0.00020821,3]
[334613911,1723347045501,-500.0,0.00020821,3]
[334613912,1723347045511,-528.55568159,0.00020821,3]
[334613913,1723347045521,-500.0,0.00020821,3]
[334613914,1723347045531,-703.62,0.00020821,3]
[334613915,1723347045541,-151.0,0.00020821,2]
[334613916,1723347045551,-962.95,0.00020821,3]
[334613917,1723347045561,-179.34945378,0.00020821,3]
[334613918,1723347045571,-8198.94,0.00020821,3]
[334613919,1723347045581,-151.0,0.00020821,2]
[334613920,1723347045591,-500.0,0.00020821,3]
[334613921,1723347045600,-1874.06,0.00020821,3]
[334613922,1723347045610,-530.27295459,0.00020821,3]
[334613923,1723347045619,-500.0,0.00020821,3]
[334613924,1723347045629,-1316.12,0.00020821,3]
[334613925,1723347045639,-500.0,0.00020821,3]
[334613926,1723347045649,-500.0,0.00020821,3]
[334613927,1723347045658,-754.94,0.00020821,3]
[334613928,1723347045668,-500.0,0.00020821,3]
[334613929,1723347045677,-500.0,0.00020821,3]
[334613930,1723347045686,-500.0,0.00020821,3]
[334613931,1723347045696,-500.0,0.00020821,3]
[334613932,1723347045705,-2400.86,0.00020821,3]
[334613933,1723347045715,-500.0,0.00020821,3]
[334613934,1723347045725,-508.6,0.00020821,3]
[334613935,1723347045734,-514.8020449,0.00020821,3]
[334613936,1723347045746,-500.0,0.00020821,3]
[334613937,1723347045755,-500.0,0.00020821,3]
[334613938,1723347045764,-1285.63,0.00020821,3]
[334613939,1723347045774,-500.0,0.00020821,3]
[334613940,1723347045784,-500.0,0.00020821,3]
[334613941,1723347045793,-1428.07,0.00020821,3]
[334613942,1723347045803,-500.0,0.00020821,3]
[334613943,1723347045813,-500.0,0.00020821,3]
[334613944,1723347045822,-377.77180242,0.00020821,3]
[334613945,1723347045832,-535.32900191,0.00020821,3]
[334613946,1723347045842,-500.0,0.00020821,3]
[334613947,1723347045851,-500.0,0.00020821,3]
[334613948,1723347045862,-500.0,0.00020821,3]
[334613949,1723347045871,-994.70562786,0.00020821,3]
[334613950,1723347045901,-11809.24437214,0.00020821,3]
[334613951,1723347045911,-12803.95,0.00020821,3]
[334613953,1723347045921,-11011.96997195,0.00020821,3]
[334613954,1723347045935,-1791.98002805,0.00020821,3]
[334613955,1723347045947,-500.29,0.00020821,3]
[334613956,1723347045958,-12803.95,0.00020821,3]
[334613957,1723347045967,-12803.95,0.00020821,3]
[334613958,1723347045977,-12803.95,0.00020821,3]
[334613959,1723347045987,-12803.95,0.00020821,3]
[334613960,1723347045996,-12803.95,0.00020821,3]
[334613961,1723347046006,-1547.55,0.00020821,3]
[334613962,1723347046016,-12803.95,0.00020821,3]
[334613963,1723347046027,-12803.95,0.00020821,3]
[334613964,1723347046037,-500.0,0.00020821,3]
[334613966,1723347046047,-12803.95,0.00020821,3]
[334613968,1723347046057,-12803.95,0.00020821,3]
[334613969,1723347046067,-12803.95,0.00020821,3]
[334613970,1723347046077,-12803.95,0.00020821,3]
[334613971,1723347046086,-12803.95,0.00020821,3]
[334613972,1723347046096,-12803.95,0.00020821,3]
[334613973,1723347046105,-12803.95,0.00020821,3]
[334613974,1723347046115,-12803.95,0.00020821,3]
[334613975,1723347046124,-579.46,0.00020821,3]
[334613976,1723347046133,-2645.29359963,0.00020821,3]
[334613977,1723347046146,-10158.65640037,0.00020821,3]
[334613978,1723347046155,-579.46,0.00020821,3]
[334613979,1723347046166,-12803.95,0.00020821,3]
[334613980,1723347046176,-579.46,0.00020821,3]
[334613981,1723347046185,-12803.95,0.00020821,3]
[334613982,1723347046195,-579.46,0.00020821,3]
[334613983,1723347046205,-12803.95,0.00020821,3]
[334613985,1723347046215,-579.46,0.00020821,3]
[334613988,1723347046224,-12803.95,0.00020821,3]
[334613991,1723347046233,-579.46,0.00020821,3]
[334613993,1723347046243,-7720.92052851,0.00020821,3]
[334613997,1723347046255,-1609.04805411,0.00020821,3]
[334614024,1723347046462,-3474.1241914,0.00020821,3]
[334614025,1723347046472,-500.0,0.00020821,3]
[334614026,1723347046481,-579.46,0.00020821,3]
[334614027,1723347046490,-579.46,0.00020821,3]
[334614028,1723347046499,-579.46,0.00020821,3]
[334614029,1723347046508,-509.84721766,0.00020821,3]
[334614030,1723347046518,-500.0,0.00020821,3]
[334614031,1723347046527,-579.46,0.00020821,3]
[334614032,1723347046536,-579.46,0.00020821,3]
[334614033,1723347046545,-579.46,0.00020821,3]
[334614034,1723347046554,-579.46,0.00020821,3]
[334614035,1723347046564,-579.46,0.00020821,3]
[334614036,1723347046574,-579.46,0.00020821,3]
[334614037,1723347046583,-500.0,0.00020821,3]
[334614039,1723347046593,-579.46,0.00020821,3]
[334614041,1723347046602,-579.46,0.00020821,3]
[334614043,1723347046611,-500.0,0.00020821,3]
[334614045,1723347046621,-1252.31,0.00020821,3]
[334614046,1723347046630,-503.89301653,0.00020821,3]
[334614047,1723347046639,-579.46,0.00020821,3]
[334614048,1723347046649,-500.0,0.00020821,3]
[334614049,1723347046660,-579.46,0.00020821,3]
[334614050,1723347046669,-579.46,0.00020821,3]
[334614051,1723347046678,-579.46,0.00020821,3]
[334614052,1723347046689,-579.46,0.00020821,3]
[334614053,1723347046701,-500.0,0.00020821,3]
[334614054,1723347046710,-579.46,0.00020821,3]
[334614055,1723347046719,-579.55627803,0.00020821,3]
[334614056,1723347046729,-500.0,0.00020821,3]
[334614057,1723347046738,-2952.07,0.00020821,3]
[334614058,1723347046747,-210.69575468,0.00020821,3]
[334614059,1723347046757,-500.0,0.00020821,3]
[334614060,1723347046767,-500.0,0.00020821,3]
[334614061,1723347046778,-1042.21,0.00020821,3]
[334614062,1723347046787,-2093.65,0.00020821,3]
[334614063,1723347046797,-500.0,0.00020821,3]
[334614064,1723347046806,-940.35288817,0.00020821,3]
[334614065,1723347046819,-268.20199972,0.00020821,3]
[334614066,1723347046830,-495.65667566,0.00020821,3]
[334614067,1723347046842,-746.61843645,0.00020821,3]
[334614068,1723347046851,-500.0,0.00020821,3]
[334614069,1723347046860,-500.0,0.00020821,3]
[334614070,1723347046869,-500.0,0.00020821,3]
[334614071,1723347046878,-500.0,0.00020821,3]
[334614072,1723347046888,-500.0,0.00020821,3]
[334614073,1723347046897,-500.0,0.00020821,3]
[334614074,1723347046907,-500.0,0.00020821,3]
[334614079,1723347047056,-500.0,0.00020821,3]
[334614080,1723347047066,-2505.95,0.00020821,3]
[334614081,1723347047076,-583.66,0.00020821,3]
[334614082,1723347047085,-648.97,0.00020821,3]
[334614083,1723347047095,-648.97,0.00020821,3]
[334614084,1723347047104,-562.55415318,0.00020821,3]
[334614085,1723347047723,273.37336231,9.9e-05,2]
[334614086,1723347047886,-522.80309354,0.00018999,2]
[334614087,1723347047897,-295.32690646,0.00019542,2]
[334614088,1723347047910,-12871.28028898,0.00019542,2]
[334614089,1723347047922,-404.28315787,0.00019542,2]
[334614090,1723347048318,-325.33863209,0.00019542,2]
[334614091,1723347048330,-273.37336231,0.00019542,2]
[334614092,1723347048341,-2646.15,0.00019542,2]
[334614093,1723347057927,273.37336231,9.9e-05,2]
[334614094,1723347082183,154.79103211,0.00012,2]
[334614095,1723347082393,154.96280568,0.00012,2]
[334614096,1723347084287,154.79103211,0.00012,2]
[334614097,1723347084589,155.08244183,0.00012,2]
[334614098,1723347084818,188.76776838,0.00012,2]
[334614099,1723347085522,154.93247291,0.00012,2]
[334614100,1723347086565,1386.93485825,0.00012,2]
[334614101,1723347086736,1795.64982845,0.00012,2]
[334614102,1723347086998,192.22273526,0.00012,2]
[334614103,1723347093059,254.84533758,0.00012,2]
[334614104,1723347097079,986.44650814,0.00012,2]
[334614105,1723347099193,3089.42924468,0.00012,2]
[334614106,1723347101924,288.72241079,0.00012,2]
[334614107,1723347103292,156.69756504,0.00012,2]
[334614108,1723347105352,502.85,0.00027,120]
[334614109,1723347106860,1769.26771275,0.00012,2]
[334614110,1723347107471,2126.37973248,0.00012,2]
[334614111,1723347110027,320.06592804,0.00012,2]
[334614112,1723347110145,332.21200423,0.00012,2]
[334614113,1723347110424,8445.9565848,0.00014062,2]
[334614114,1723347111665,175.09489674,0.00012,2]
[334614115,1723347119531,472.3308727,0.00012,2]
[334614116,1723347128078,744.59992376,0.00012,2]
[334614117,1723347147454,2131.08148678,0.00014545,2]
[334614118,1723347147780,273.37336231,9.9e-05,2]
[334614119,1723347148355,284.16424637,0.00014545,2]
[334614120,1723347162728,494.60608226,0.00014545,2]
[334614121,1723347163466,273.37336231,9.9e-05,2]
[334614122,1723347164559,7717.965561,0.00014545,2]
[334614123,1723347168369,694.62275433,0.00014545,2]
[334614124,1723347169404,453.97855281,0.00014545,2]
[334614125,1723347169699,155.04105281,0.00014545,2]
[334614126,1723347171770,1536.33717477,0.00014545,2]
[334614127,1723347172860,154.79092116,0.00015,2]
[334614128,1723347173201,3090.31067256,0.00014545,2]
[334614129,1723347174631,533.91312083,0.00014545,2]
[334614130,1723347174664,155.13602929,0.00014545,2]
[334614131,1723347176027,196.49018749,0.00014545,2]
[334614132,1723347177101,545.0667587,0.00014545,2]
[334614133,1723347177393,301.25996446,0.00014545,2]
[334614134,1723347177917,1889.38943615,0.00014545,2]
[334614135,1723347179303,159.67933878,0.00014545,2]
[334614136,1723347187798,738.58105149,0.00014545,2]
[334614137,1723347282925,163.445049,0.00014247,2]
[334614138,1723347562247,832.89,0.00010959,2]
[334614139,1723347572776,2398.16,0.00010959,2]
[334614140,1723347583304,2080.87,0.00010959,2]
[334614141,1723347593809,1802.72,0.00010959,2]
[334614142,1723347604405,1559.49,0.00010959,2]
[334614143,1723347615078,1386.99,0.00010959,2]
[334614144,1723347625604,1188.94,0.00010959,2]
[334614145,1723347626167,163.35221619,0.00013283,2]
[334614146,1723347636146,990.78,0.00010959,2]
[334614147,1723347640679,201.20456961,0.00013283,2]
[334614148,1723347646847,991.23,0.00010959,2]
[334614149,1723347657577,826.02,0.00010959,2]
[334614150,1723347668190,688.35,0.00010959,2]
[334614151,1723347678755,573.63,0.00010959,2]
[334614152,1723347689329,478.02,0.00010959,2]
[334614153,1723347689602,493.91073786,0.00015,2]
[334614154,1723347699853,478.02,0.00010959,2]
[334614155,1723347708152,155.74081555,0.00014,2]
[334614156,1723347710370,318.68,0.00010959,2]
[334614157,1723347720880,265.57,0.00010959,2]
[334614158,1723347725859,273.37336231,9.9e-05,2]
[334614159,1723347731390,221.31,0.00010959,2]
[334614160,1723347741938,184.42,0.00010959,2]
[334614161,1723347752646,153.69,0.00010959,2]
[334614162,1723347760239,913.0431353,0.00015,2]
[334614163,1723347763355,768.46,0.00010959,2]
[334614164,1723347770030,273.37336231,9.9e-05,2]
[334614165,1723347778674,2380.9743122,0.00014981,2]
[334614166,1723347783759,267.85632374,0.00013283,2]
[334614167,1723347785224,273.37336231,9.9e-05,2]
[334614168,1723347785891,154.84042217,0.00013283,2]
[334614169,1723347786956,154.85457168,0.00015,2]
[334614170,1723347790365,154.79289956,0.00013283,2]
[334614171,1723347790753,247.7266478,0.00014,2]
[334614172,1723347798306,172.39894809,0.00013283,2]
[334614173,1723347802167,170.14395144,0.00013,2]
[334614174,1723347802653,155.54473646,0.00013283,2]
[334614175,1723347804788,303.00824119,0.00013283,2]
[334614176,1723347805773,164.688894,0.00014247,2]
[334614177,1723347807108,182.875803,0.00014986,2]
[334614178,1723347807359,182.875803,0.00015005,2]
[334614179,1723347815207,305.89979395,0.00012,2]
[334614180,1723347819627,154.95892306,0.00012,2]
[334614181,1723347820866,154.88961185,0.00012,2]
[334614182,1723347835201,852.94600529,0.00015,2]
[334614183,1723347842139,154.82996095,0.00014545,2]
[334614184,1723347863304,332.21200423,0.00014545,2]
[334614185,1723348006872,182.78999009,9.9e-05,2]
[334614186,1723348023117,273.37336231,9.9e-05,2]
[334614187,1723348026127,-182.875803,0.00015023,2]
[334614188,1723348026152,-182.875803,0.00015042,2]
[334614189,1723348026176,-182.875803,0.00015061,2]
[334614190,1723348026197,-667.8148139,0.00015512,2]
[334614191,1723348026222,-1303.36274905,0.00015573,2]
[334614192,1723348026255,-473.95532003,0.00015573,2]
[334614193,1723348039567,273.37336231,9.9e-05,2]
[334614194,1723348046119,-539.256378,0.00015573,2]
[334614195,1723348055322,273.37336231,9.9e-05,2]
[334614196,1723348070777,273.37336231,9.9e-05,2]
[334614197,1723348083351,24900.0,0.00014747,2]
[334614198,1723348086816,273.37336231,9.9e-05,2]
[334614199,1723348087191,13159.8837516,0.00014746,2]
[334614200,1723348097908,591.8516546,0.00014772,2]
[334614201,1723348100299,250.0,0.00014854,2]
[334614202,1723348100349,250.0,0.00014894,2]
[334614203,1723348100464,250.0,0.00014935,2]
[334614204,1723348100681,250.0,0.00014976,2]
[334614205,1723348103575,273.37336231,9.9e-05,2]
[334614206,1723348110101,2751.7020396,0.00014414,2]
[334614207,1723348119788,273.37336231,9.9e-05,2]
[334614208,1723348127327,3000.0,0.00014429,2]
[334614209,1723348130418,5726.75238617,0.00012,2]
[334614210,1723348132775,1070.6419705,0.00012,2]
[334614211,1723348135125,273.37336231,9.9e-05,2]
[334614212,1723348137247,189.86108484,0.00012,2]
[334614213,1723348138530,649.11248572,0.00012,2]
[334614214,1723348141377,154.87305739,0.00012,2]
[334614215,1723348143796,1109.52360725,0.00015,2]
[334614216,1723348145384,309.21151064,0.00012,2]
[334614217,1723348150222,709.59190356,0.00015,2]
[334614218,1723348151443,273.37336231,9.9e-05,2]
[334614220,1723348154412,156.69756504,0.00012,2]
[334614221,1723348156304,-250.0,0.00015017,2]
[334614222,1723348156328,-250.0,0.00015057,2]
[334614223,1723348156352,-250.0,0.00015098,2]
[334614224,1723348156375,-250.0,0.00015139,2]
[334614225,1723348156399,-250.0,0.0001518,2]
[334614226,1723348156422,-250.0,0.0001522,2]
[334614227,1723348156446,-250.0,0.00015261,2]
[334614228,1723348156470,-250.0,0.00015302,2]
[334614229,1723348156493,-250.0,0.00015342,2]
[334614230,1723348156515,-250.0,0.00015383,2]
[334614231,1723348156537,-250.0,0.00015424,2]
[334614232,1723348156559,-250.0,0.00015465,2]
[334614233,1723348156582,-250.0,0.00015505,2]
[334614234,1723348156606,-250.0,0.00015546,2]
[334614235,1723348156633,-250.0,0.00015587,2]
[334614236,1723348156656,-250.0,0.00015628,2]
[334614237,1723348156678,-191.27278154,0.0001571,2]
[334614238,1723348156701,-300.0,0.0001571,2]
[334614239,1723348156723,-22502.23780026,0.00015711,2]
[334614240,1723348158382,155.13366212,0.00012,2]
[334614241,1723348160023,196.46437108,0.00012,2]
[334614242,1723348161227,154.76784823,0.00012,2]
[334614243,1723348161941,4716.54030251,9.9e-05,2]
[334614244,1723348166925,273.37336231,9.9e-05,2]
[334614245,1723348168084,-174.6215486,0.00015712,2]
[334614246,1723348168109,-84537.0644319,0.00015734,2]
[334614247,1723348168130,-180.97512814,0.00015744,2]
[334614248,1723348168153,-241.01224895,0.00015746,2]
[334614249,1723348168175,-154.76784823,0.00015751,2]
[334614250,1723348168198,-154.99397942,0.00015751,2]
[334614251,1723348168220,-206.08528182,0.00015851,2]
[334614252,1723348168242,-2996.12934733,0.00015852,2]
[334614253,1723348168264,-1645.095137,0.00015881,2]
[334614254,1723348168285,-737.44249005,0.00015952,2]
[334614255,1723348168306,-2663.88047664,0.00015952,2]
[334614256,1723348168330,-1484.86939982,0.00016157,2]
[334614257,1723348168353,-2996.12934733,0.0001669,2]
[334614258,1723348168374,-154.86364515,0.00017,2]
[334614259,1723348168396,-510.26340693,0.00017,3]
[334614260,1723348168418,-500.0,0.00017124,2]
[334614261,1723348168439,-200.14931691,0.00017124,2]
[334614262,1723348168461,-216.05025385,0.00017124,2]
[334614263,1723348168484,-500.0,0.00017124,2]
[334614264,1723348168505,-491.30151684,0.00017124,2]
[334614265,1723348168528,-500.0,0.00017124,2]
[334614266,1723348168549,-500.0,0.00017124,2]
[334614267,1723348168571,-500.0,0.00017124,2]
[334614268,1723348168592,-500.0,0.00017124,2]
[334614269,1723348168617,-500.0,0.00017124,2]
[334614270,1723348168642,-500.0,0.00017124,2]
[334614271,1723348168664,-500.0,0.00017124,2]
[334614272,1723348168686,-484.40978647,0.00017124,2]
[334614273,1723348168709,-500.0,0.00017124,2]
[334614274,1723348168730,-500.0,0.00017124,2]
[334614275,1723348168752,-500.0,0.00017124,2]
[334614276,1723348168775,-500.0,0.00017124,2]
[334614277,1723348168796,-500.0,0.00017124,2]
[334614278,1723348168819,-500.0,0.00017124,2]
[334614279,1723348168842,-500.0,0.00017124,2]
[334614280,1723348168866,-500.0,0.00017124,2]
[334614281,1723348168889,-500.0,0.00017124,2]
[334614282,1723348168912,-500.0,0.00017124,2]
[334614283,1723348168933,-189.08685053,0.00017124,2]
[334614284,1723348168954,-500.0,0.00017124,2]
[334614285,1723348168976,-500.0,0.00017124,2]
[334614286,1723348168999,-314.45428729,0.00017269,2]
[334614287,1723348169021,-420.0,0.00017281,2]
[334614288,1723348169042,-332.21200423,0.00017379,2]
[334614289,1723348169063,-332.21200423,0.00017379,2]
[334614290,1723348169085,-278.08377405,0.00017403,2]
[334614291,1723348169108,-2996.12934733,0.00017527,2]
[334614292,1723348169130,-154.79103211,0.0001763,2]
[334614293,1723348169152,-419.82420015,0.00017785,2]
[334614294,1723348169174,-195.039736,0.00017886,2]
[334614295,1723348169196,-195.039736,0.0001793,2]
[334614296,1723348169218,-195.039736,0.00017975,2]
[334614297,1723348169241,-50527.8773007,0.0001799,2]
[334614298,1723348170293,2910.95548837,9.9e-05,2]
[334614299,1723348171103,-17985.15992,0.00015708,2]
[334614300,1723348174161,534.23635652,0.00012,2]
[334614301,1723348174748,154.79103211,0.00012,2]
[334614302,1723348175523,543.3913977,0.00012,2]
[334614303,1723348178487,155.01842383,0.00012,2]
[334614304,1723348179892,1416.15916392,9.9e-05,2]
[334614305,1723348183807,273.37336231,9.9e-05,2]
[334614306,1723348184041,189.86108484,0.00012,2]
[334614307,1723348184771,1109.52360725,0.00015,2]
[334614308,1723348191316,154.79103211,0.00012,2]
[334614309,1723348196204,154.78330569,0.00012,2]
[334614310,1723348199773,273.37336231,9.9e-05,2]
[334614311,1723348200359,156.69756504,0.00012,2]
[334614312,1723348200460,3001.57363421,0.00012,2]
[334614313,1723348202636,245.196583,0.00012,2]
[334614314,1723348204335,240.87734831,0.00012,2]
[334614315,1723348206732,156.28070463,0.00012,2]
[334614316,1723348208937,844.85655441,0.00012,2]
[334614317,1723348209180,202.08785835,0.00012,2]
[334614318,1723348210504,694.52815247,0.00012,2]
[334614319,1723348210671,492.72901981,0.00015,2]
[334614320,1723348211530,155.45004248,0.00012,2]
[334614321,1723348213651,197.34020959,0.00012,2]
[334614322,1723348215068,273.37336231,9.9e-05,2]
[334614323,1723348217574,154.89632926,0.00014,2]
[334614324,1723348218328,100000.0,0.0001469,2]
[334614325,1723348218498,154.79103211,0.00012,2]
[334614326,1723348219162,534.23635652,0.00012,2]
[334614327,1723348224752,154.94236017,0.00012,2]
[334614328,1723348225487,543.3913977,0.00012,2]
[334614329,1723348226962,180.58289429,0.00012,2]
[334614330,1723348230258,16301.32393209,0.00014,2]
[334614331,1723348230997,273.37336231,9.9e-05,2]
[334614358,1723348232322,963.26514221,0.00014,2]
[334614372,1723348232491,-271.30521283,0.00015646,2]
[334614374,1723348232502,-300.0,0.00015707,2]
[334614376,1723348232513,-300.0,0.00015707,2]
[334614378,1723348232523,-532.54272678,0.00015744,2]
[334614380,1723348232534,-154.81421599,0.00015744,2]
[334614382,1723348232543,-247.25070756,0.00015851,2]
[334614384,1723348232555,-1606.377173,0.00016551,2]
[334614386,1723348232566,-1109.52360725,0.00016969,2]
[334614388,1723348232578,-302.0,0.00017178,2]
[334614390,1723348232589,-271.30521282,0.00017248,2]
[334614391,1723348232601,-420.0,0.00017278,2]
[334614392,1723348232611,-10034.90033333,0.0001799,2]
[334614393,1723348232626,-586.23740997,0.0001799,2]
[334614394,1723348232637,-510.30323151,0.0001799,2]
[334614434,1723348238928,-22877.74615639,0.0001799,2]
[334614436,1723348238938,-5236.61359711,0.00018,2]
[334614438,1723348238948,-288.75143879,0.00018,2]
[334614440,1723348238958,-1198.45173894,0.00018567,2]
[334614443,1723348238968,-35040.45161499,0.00018667,2]
[334614445,1723348238978,-35040.45161499,0.00018667,2]
[334614447,1723348238987,-7007.90701187,0.00018667,2]
[334614448,1723348238997,-404.08727484,0.00018786,2]
[334614450,1723348239006,-1992.27585132,0.00018845,2]
[334614453,1723348239017,-271.30521282,0.0001885,2]
[334614455,1723348239026,-398.648613,0.00018904,2]
[334614457,1723348239035,-952.621668,0.00018921,2]
[334614459,1723348239045,-952.621668,0.00018921,2]
[334614461,1723348239054,-84537.0644319,0.00018935,2]
[334614463,1723348239063,-343.91106179,0.00018944,2]
[334614465,1723348239073,-500.0,0.00018944,2]
[334614467,1723348239082,-500.0,0.00018944,2]
[334614469,1723348239091,-500.0,0.00018944,2]
[334614470,1723348239100,-600.0,0.00018944,2]
[334614472,1723348239109,-500.0,0.00018944,2]
[334614474,1723348239118,-500.0,0.00018944,2]
[334614476,1723348239128,-500.0,0.00018944,2]
[334614478,1723348239137,-500.0,0.00018944,2]
[334614480,1723348239147,-809.06263735,0.00018945,2]
[334614482,1723348239158,-154.76784823,0.00018945,2]
[334614484,1723348239168,-850.13586547,0.0001895,2]
[334614487,1723348239178,-850.13586547,0.0001895,2]
[334614489,1723348239188,-183.09063166,0.0001895,2]
[334614490,1723348239197,-309.3349299,0.0001895,2]
[334614492,1723348239206,-569.05372197,0.00018969,2]
[334614494,1723348239215,-165.69067667,0.00018969,2]
[334614496,1723348239225,-494.6780177,0.00018969,2]
[334614498,1723348239235,-196.63865106,0.00018969,2]
[334614500,1723348239244,-194.58014025,0.00018969,2]
[334614502,1723348239253,-156.96173825,0.00018969,2]
[334614504,1723348239263,-319.99782942,0.00018969,2]
[334614506,1723348239273,-343.31801013,0.00018976,2]
[334614508,1723348239282,-160.30213643,0.00018976,2]
[334614511,1723348239294,-270.91136909,0.00018979,2]
[334614513,1723348239304,-1092.45305445,0.00018979,2]
[334614515,1723348239314,-306.43049099,0.00018989,2]
[334614517,1723348239323,-301.17309973,0.00018999,2]
[334614519,1723348239335,-587.0,0.00019005,2]
[334614521,1723348239347,-674.29442115,0.00019046,2]
[334614523,1723348239359,-156.05197447,0.00019046,2]
[334614526,1723348239372,-1198.45173893,0.00019105,2]
[334614528,1723348239382,-154.76784823,0.00019177,2]
[334614530,1723348239392,-168.307079,0.00019178,2]
[334614532,1723348239402,-155.797894,0.00019246,2]
[334614534,1723348239413,-155.797894,0.00019246,2]
[334614536,1723348239423,-1750.0,0.00019246,2]
[334614538,1723348239432,-1750.0,0.00019246,2]
[334614540,1723348239442,-206.115534,0.00019246,2]
[334614542,1723348239451,-30258.6010143,0.00019357,4]
[334614543,1723348239461,-153.0,0.00019461,2]
[334614546,1723348239470,-153.0,0.00019467,2]
[334614548,1723348239483,-153.0,0.00019467,2]
[334614550,1723348239493,-153.0,0.00019467,2]
[334614552,1723348239503,-153.0,0.00019467,2]